bitfinex/quotes_BTCUSD_20241202
["timestamp","ask_amount","ask_price","bid_price","bid_amount"]
[1733177226611,0.42038761,95517.0,95516.0,0.0017292]
[1733177226986,0.42138761,95517.0,95516.0,0.0027292]
[1733177227188,0.4276266,95517.0,95516.0,0.0027292]
[1733177227400,0.44498542,95517.0,95516.0,0.0027292]
[1733177228619,0.44498542,95517.0,95516.0,0.0257292]
[1733177229400,0.44498542,95517.0,95516.0,0.0027292]
[1733177229641,0.15,95514.0,95498.0,0.0023464]
[1733177229894,0.15,95516.0,95499.0,0.00092326]
[1733177229895,0.359424,95500.0,95499.0,0.00092326]
[1733177230155,0.3626981,95500.0,95499.0,0.00092326]
[1733177231224,0.40173223,95500.0,95499.0,0.00092326]
[1733177231458,0.40173223,95500.0,95498.0,0.0023464]
[1733177231459,0.233,95499.0,95498.0,1e-08]
[1733177231674,0.15,95497.0,95496.0,0.00082511]
[1733177231891,0.1532741,95497.0,95496.0,0.0010011]
[1733177232985,0.418864,95496.0,95493.0,0.023]
[1733177233196,0.1532741,95495.0,95493.0,0.023]
[1733177233426,0.15,95484.0,95478.0,0.2]
[1733177233660,0.209494,95468.0,95467.0,0.0784]
[1733177233881,0.209494,95468.0,95467.0,0.30284521]
[1733177234354,0.209494,95468.0,95466.0,0.2145377]
[1733177234995,0.20967038,95468.0,95466.0,0.2145377]
[1733177235212,0.06286434,95467.0,95466.0,0.0145377]
[1733177235434,0.21286434,95467.0,95466.0,0.0145377]
[1733177235656,0.21614037,95467.0,95466.0,0.0145377]
[1733177236296,0.15327603,95467.0,95466.0,0.0145377]
[1733177236757,0.15427603,95467.0,95466.0,0.0145377]
[1733177236959,0.15527612,95467.0,95466.0,0.0375377]
[1733177237167,0.15427612,95467.0,95466.0,0.0375377]
[1733177237377,0.15,95467.0,95466.0,0.0375377]
[1733177237600,0.16922072,95467.0,95466.0,0.0375377]
[1733177240139,0.24900713,95467.0,95466.0,0.0375377]
[1733177240794,0.25228342,95467.0,95466.0,0.0375377]
[1733177241004,0.25228342,95467.0,95466.0,0.0154027]
[1733177241847,0.25060933,95467.0,95466.0,0.0154027]
[1733177242270,0.25260933,95467.0,95466.0,0.0154027]
[1733177242490,0.25160933,95467.0,95466.0,0.0154027]
[1733177242774,0.43545454,95467.0,95466.0,0.0154027]
[1733177243014,0.43712863,95467.0,95466.0,7e-07]
[1733177243220,0.50782536,95467.0,95466.0,7e-07]
[1733177243427,0.50454907,95467.0,95466.0,7e-07]
[1733177243633,0.537976,95467.0,95466.0,7e-07]
[1733177243846,0.537976,95467.0,95437.0,0.2]
[1733177243847,0.359544,95445.0,95437.0,0.2]
[1733177244055,0.4102654,95445.0,95437.0,0.2]
[1733177244352,0.38955001,95445.0,95437.0,0.2]
[1733177244542,0.38955001,95445.0,95444.0,0.22306]
[1733177244757,0.38955001,95445.0,95444.0,0.02306]
[1733177244993,0.38955001,95445.0,95444.0,0.03188875]
[1733177245226,0.359544,95445.0,95444.0,0.22306]
[1733177245434,0.15,95446.0,95445.0,0.223]
[1733177245889,0.15,95446.0,95445.0,0.23187748]
[1733177246804,0.20526378,95446.0,95445.0,0.23187748]
[1733177247008,0.20626378,95446.0,95445.0,0.03187748]
[1733177247230,0.20626378,95446.0,95445.0,0.23187748]
[1733177248044,0.23635658,95446.0,95445.0,0.23187748]
[1733177248251,0.1810218,95446.0,95445.0,0.23187748]
[1733177248876,0.150929,95446.0,95445.0,0.23187748]
[1733177249290,0.002,95446.0,95445.0,0.23187748]
[1733177251553,0.002,95446.0,95445.0,0.33472269]
[1733177252399,0.001,95446.0,95445.0,0.33472269]
[1733177252822,0.01745082,95449.0,95448.0,0.223]
[1733177253236,0.209529,95452.0,95448.0,0.223]
[1733177253444,0.419059,95452.0,95449.0,0.023]
[1733177254083,0.419059,95452.0,95450.0,0.00887748]
[1733177254512,0.419059,95452.0,95451.0,0.023]
[1733177254752,0.419059,95452.0,95451.0,0.00887748]
[1733177254994,0.48462882,95452.0,95451.0,0.03187748]
[1733177255232,0.15,95451.0,95450.0,0.023]
[1733177255453,0.359542,95446.0,95445.0,0.000865]
[1733177255906,0.359542,95446.0,95445.0,0.0327709]
[1733177256789,0.44405978,95446.0,95445.0,0.0327709]
[1733177257258,0.46113933,95446.0,95445.0,0.0327709]
[1733177257473,0.46213933,95446.0,95445.0,0.04858702]
[1733177257905,0.46213933,95446.0,95445.0,0.0407709]
[1733177258336,0.46213933,95446.0,95445.0,0.05658704]
[1733177258337,0.46313933,95446.0,95445.0,0.05658704]
[1733177259483,0.46313933,95446.0,95445.0,0.04768114]
[1733177259742,0.46313933,95446.0,95445.0,0.04876266]
[1733177259954,0.54223933,95446.0,95445.0,0.039865]
[1733177260223,0.57233213,95446.0,95445.0,0.039865]
[1733177260437,0.57560894,95446.0,95445.0,0.016865]
[1733177260852,0.57460894,95446.0,95445.0,0.008865]
[1733177261515,0.57560894,95446.0,95445.0,0.039865]
[1733177261737,0.57460894,95446.0,95445.0,0.031865]
[1733177261949,0.57360894,95446.0,95445.0,0.023865]
[1733177262154,0.57560894,95446.0,95445.0,0.038865]
[1733177262976,0.57460894,95446.0,95445.0,0.031865]
[1733177263383,0.57560894,95446.0,95445.0,0.037865]
[1733177264450,0.57560894,95446.0,95445.0,0.04570976]
[1733177264702,0.57233213,95446.0,95445.0,0.04570976]
[1733177264887,0.57406293,95446.0,95445.0,0.04570976]
[1733177265089,0.57406293,95446.0,95445.0,0.037865]
[1733177267088,0.57474855,95446.0,95445.0,0.037865]
[1733177267769,0.57406293,95446.0,95445.0,0.037865]
[1733177267985,0.48954515,95446.0,95445.0,0.037865]
[1733177269445,0.41044515,95446.0,95445.0,0.037865]
[1733177274126,0.41044515,95446.0,95422.0,0.2767]
[1733177274127,0.209573,95432.0,95422.0,0.2767]
[1733177274327,0.359573,95432.0,95431.0,0.00871021]
[1733177274534,0.359573,95432.0,95431.0,0.0008649]
[1733177274535,0.3955303,95432.0,95431.0,0.0008649]
[1733177275193,0.4045303,95432.0,95431.0,0.0018649]
[1733177275400,0.40470655,95432.0,95431.0,0.0018649]
[1733177275614,0.40798389,95432.0,95431.0,0.0018649]
[1733177275823,0.42813918,95432.0,95431.0,0.0018649]
[1733177276037,0.39806903,95432.0,95431.0,0.0008649]
[1733177276250,0.39906903,95432.0,95431.0,0.0308649]
[1733177276707,0.40806903,95432.0,95431.0,0.0308649]
[1733177276912,0.39906903,95432.0,95431.0,0.0308649]
[1733177277121,0.41686835,95432.0,95431.0,0.0308649]
[1733177277327,0.41786835,95432.0,95431.0,0.0308649]
[1733177277742,0.41686835,95432.0,95431.0,0.0238649]
[1733177278159,0.41786835,95432.0,95431.0,0.0238649]
[1733177278580,0.41686835,95432.0,95431.0,0.0238649]
[1733177278997,0.41786835,95432.0,95431.0,0.0238649]
[1733177279414,0.41686835,95432.0,95431.0,0.0008649]
[1733177279839,0.41786835,95432.0,95431.0,0.0008649]
[1733177280052,0.41686835,95432.0,95431.0,0.0008649]
[1733177280475,0.41786835,95432.0,95431.0,0.0008649]
[1733177280706,0.41686835,95432.0,95431.0,0.0008649]
[1733177280919,0.41786835,95432.0,95431.0,0.0008649]
[1733177281130,0.41686835,95432.0,95431.0,0.0008649]
[1733177281814,0.41786835,95432.0,95431.0,0.0008649]
[1733177282052,0.38191105,95432.0,95431.0,0.0008649]
[1733177282473,0.38122121,95432.0,95431.0,0.0008649]
[1733177283888,0.38095534,95432.0,95431.0,0.0315166]
[1733177284090,0.38095534,95432.0,95431.0,0.0238649]
[1733177284297,0.46096397,95432.0,95431.0,0.0315166]
[1733177285139,0.38095534,95432.0,95431.0,0.0315166]
[1733177285349,0.38095534,95432.0,95431.0,0.2315166]
[1733177285981,0.02325291,95432.0,95431.0,0.3134166]
[1733177286860,0.02325291,95432.0,95431.0,0.32126269]
[1733177287090,0.19999988,95469.0,95437.0,0.0819]
[1733177287309,0.209511,95461.0,95459.0,0.2]
[1733177287523,0.209511,95461.0,95460.0,0.03084609]
[1733177288596,0.210511,95461.0,95460.0,0.023]
[1733177289085,0.15,95459.0,95438.0,0.0458]
[1733177289299,0.15,95459.0,95434.0,0.2]
[1733177289300,0.209562,95437.0,95434.0,0.2]
[1733177289717,0.209564,95436.0,95434.0,0.2]
[1733177290815,0.209562,95437.0,95431.0,0.0008649]
[1733177291031,0.209569,95434.0,95431.0,0.0008649]
[1733177291245,0.419138,95434.0,95431.0,0.0008649]
[1733177293108,0.420138,95434.0,95431.0,0.0098649]
[1733177293945,0.421138,95434.0,95431.0,0.0188649]
[1733177297096,0.420138,95434.0,95431.0,0.0098649]
[1733177297357,0.09000104,95433.0,95431.0,0.0178649]
[1733177297582,0.209573,95432.0,95431.0,0.0178649]
[1733177298000,0.359573,95432.0,95431.0,0.0008649]
[1733177298214,0.45241905,95432.0,95431.0,0.0088649]
[1733177298422,0.45241905,95432.0,95431.0,0.0158649]
[1733177298636,0.45241905,95432.0,95431.0,0.0008649]
[1733177298846,0.45241905,95432.0,95431.0,0.00145344]
[1733177299075,0.45341905,95432.0,95431.0,0.00845344]
[1733177299293,0.45669644,95432.0,95431.0,0.00145344]
[1733177299522,0.45669644,95432.0,95431.0,0.00845344]
[1733177299523,0.45769644,95432.0,95431.0,0.00845344]
[1733177299983,0.45869644,95432.0,95431.0,0.01545344]
[1733177300402,0.45769644,95432.0,95431.0,0.00845344]
[1733177300815,0.45869644,95432.0,95431.0,0.01545344]
[1733177302094,0.45869648,95432.0,95431.0,0.01545344]
[1733177307107,0.56154169,95432.0,95431.0,0.01545344]
[1733177307522,0.56171543,95432.0,95431.0,0.01545344]
[1733177307725,0.59316694,95432.0,95431.0,4.4e-07]
[1733177307907,0.58988951,95432.0,95431.0,4.4e-07]
[1733177308143,0.359597,95421.0,95420.0,0.0008649]
[1733177308347,0.49840191,95421.0,95420.0,0.0008649]
[1733177309102,0.46244221,95421.0,95420.0,0.0008649]
[1733177309310,0.359597,95421.0,95420.0,0.0008649]
[1733177309679,0.36287508,95421.0,95420.0,0.0008649]
[1733177309878,0.38032803,95421.0,95420.0,0.0008649]
[1733177310490,0.38032803,95421.0,95340.0,0.209773]
[1733177310491,0.2,95384.0,95340.0,0.209773]
[1733177310683,0.2,95382.0,95371.0,0.209705]
[1733177310899,0.2,95382.0,95372.0,0.1106832]
[1733177311099,0.2,95382.0,95373.0,0.00783799]
[1733177311307,0.209685,95381.0,95374.0,0.1106832]
[1733177311513,0.2,95382.0,95374.0,0.10284521]
[1733177311711,0.2,95382.0,95375.0,0.00783378]
[1733177311939,0.20058854,95382.0,95376.0,0.13367899]
[1733177312146,0.20158854,95382.0,95378.0,0.023]
[1733177312772,0.20158854,95382.0,95377.0,0.023]
[1733177312972,0.20158854,95382.0,95378.0,0.023]
[1733177313399,0.001,95381.0,95378.0,0.023]
[1733177313795,0.20158854,95382.0,95378.0,0.023]
[1733177313796,0.20058854,95382.0,95378.0,0.023]
[1733177314004,0.20358854,95382.0,95378.0,0.023]
[1733177314238,0.30188248,95382.0,95378.0,0.023]
[1733177314631,0.29788248,95382.0,95378.0,0.023]
[1733177314891,0.004,95381.0,95378.0,0.023]
[1733177315155,0.003,95381.0,95378.0,0.023]
[1733177315932,0.003,95381.0,95379.0,0.10284521]
[1733177316169,0.00058854,95382.0,95379.0,0.10284521]
[1733177316170,0.00058854,95382.0,95380.0,0.02485554]
[1733177316372,0.00258854,95382.0,95381.0,0.12584521]
[1733177316777,0.00058854,95382.0,95381.0,0.12584521]
[1733177317625,0.00158854,95382.0,95381.0,0.12584521]
[1733177318026,0.00258854,95382.0,95381.0,0.12684521]
[1733177318873,0.00258854,95382.0,95381.0,0.12870077]
[1733177319081,0.00258854,95382.0,95381.0,0.13652929]
[1733177321395,0.00258854,95382.0,95381.0,0.26002929]
[1733177321600,0.00258854,95382.0,95381.0,0.25817373]
[1733177321804,0.00258854,95382.0,95381.0,0.27601619]
[1733177323155,0.00158854,95382.0,95381.0,0.28854712]
[1733177323359,0.01058854,95382.0,95381.0,0.28954712]
[1733177323572,0.00958854,95382.0,95381.0,0.28854712]
[1733177323774,0.00058854,95382.0,95381.0,0.28754712]
[1733177323999,0.00958854,95382.0,95381.0,0.28854712]
[1733177324218,0.01858854,95382.0,95381.0,0.28954712]
[1733177324631,0.00958854,95382.0,95381.0,0.28854712]
[1733177325074,0.00958854,95382.0,95381.0,0.12420466]
[1733177325545,0.00958854,95382.0,95381.0,0.20590466]
[1733177325758,0.00958854,95382.0,95381.0,0.19337373]
[1733177326872,0.00058854,95382.0,95381.0,0.21537373]
[1733177327359,0.00958854,95382.0,95381.0,0.21537373]
[1733177327568,0.00758854,95382.0,95381.0,0.21537373]
[1733177328035,0.00958854,95382.0,95381.0,0.21537373]
[1733177328253,0.01858854,95382.0,95381.0,0.21638286]
[1733177329606,0.01858854,95382.0,95381.0,0.13468286]
[1733177332347,0.01858854,95382.0,95381.0,0.11168286]
[1733177333061,0.01858854,95382.0,95381.0,0.10668286]
[1733177333529,0.0391981,95382.0,95381.0,0.10668286]
[1733177334178,0.0391981,95382.0,95381.0,0.1066877]
[1733177334884,0.02031914,95382.0,95381.0,0.1066877]
[1733177335113,0.02031914,95382.0,95381.0,0.106689]
[1733177336123,0.02031914,95382.0,95381.0,0.101689]
[1733177338913,0.02031914,95382.0,95381.0,0.101589]
[1733177340306,0.02031914,95382.0,95381.0,0.111689]
[1733177342770,0.02031914,95382.0,95381.0,0.40322949]
[1733177342979,0.02031914,95382.0,95381.0,0.401374]
[1733177343199,0.02031914,95382.0,95381.0,0.41888305]
[1733177344102,0.02031914,95382.0,95381.0,0.44024436]
[1733177347950,0.02031914,95382.0,95381.0,0.42273531]
[1733177348203,0.02031914,95382.0,95381.0,0.11169322]
[1733177351487,0.02031914,95382.0,95381.0,0.00884801]
[1733177351705,0.22031914,95382.0,95381.0,0.00884801]
[1733177352299,0.22359764,95382.0,95381.0,0.001]
[1733177352953,0.209685,95381.0,95364.0,0.209722]
[1733177353163,0.209685,95381.0,95365.0,0.10284521]
[1733177353164,0.00327854,95380.0,95365.0,0.10284521]
[1733177353380,0.2,95373.0,95366.0,0.00784783]
[1733177353589,0.409708,95371.0,95366.0,0.10284521]
[1733177353806,0.409708,95371.0,95367.0,0.00784876]
[1733177354021,0.209711,95369.0,95366.0,0.10284521]
[1733177354231,0.00327883,95368.0,95366.0,0.10284521]
[1733177354651,0.419422,95369.0,95366.0,0.10284521]
[1733177354861,0.209716,95367.0,95366.0,0.10284521]
[1733177355086,0.00327883,95367.0,95366.0,0.10284521]
[1733177355298,0.00327883,95368.0,95366.0,0.10284521]
[1733177356214,0.009,95369.0,95366.0,0.10284521]
[1733177356660,0.00327883,95370.0,95366.0,0.10284521]
[1733177356878,0.009,95368.0,95366.0,0.10284521]
[1733177357100,0.018,95368.0,95366.0,0.10284521]
[1733177357351,0.00327892,95370.0,95366.0,0.10284521]
[1733177357554,0.018,95369.0,95366.0,0.10284521]
[1733177357758,0.2,95365.0,95359.0,0.00784495]
[1733177357968,0.2,95365.0,95360.0,0.10284521]
[1733177358171,0.2,95365.0,95361.0,0.00784495]
[1733177358375,0.2,95365.0,95360.0,0.10284521]
[1733177358576,0.2,95367.0,95366.0,0.0008646]
[1733177359649,0.209,95367.0,95366.0,0.0008646]
[1733177359869,0.218,95367.0,95366.0,0.0008646]
[1733177360049,0.26165342,95367.0,95366.0,0.0008646]
[1733177360711,0.22127897,95367.0,95366.0,0.0008646]
[1733177361342,0.218,95367.0,95366.0,0.0008646]
[1733177361529,0.22127905,95367.0,95366.0,0.0008646]
[1733177362412,0.22127908,95367.0,95366.0,0.0008646]
[1733177362619,0.57127896,95367.0,95366.0,0.0008646]
[1733177362849,0.65679873,95367.0,95366.0,0.0008646]
[1733177363302,0.65351965,95367.0,95366.0,0.0008646]
[1733177363518,0.65679873,95367.0,95366.0,0.0008646]
[1733177364174,0.57127896,95367.0,95366.0,0.0008646]
[1733177365927,0.57127877,95367.0,95366.0,0.0008646]
[1733177366363,0.56799988,95367.0,95366.0,0.0008646]
[1733177366608,0.17127895,95367.0,95366.0,0.10370981]
[1733177366815,0.168,95367.0,95366.0,0.10370981]
[1733177367018,0.168,95367.0,95366.0,0.10844172]
[1733177367233,0.168,95367.0,95366.0,0.10370981]
[1733177367435,0.168,95367.0,95366.0,0.10844172]
[1733177367649,0.36799988,95367.0,95366.0,0.10370981]
[1733177368063,0.018,95367.0,95366.0,0.10370981]
[1733177368475,0.018,95367.0,95366.0,0.10844172]
[1733177369562,0.018,95367.0,95366.0,0.00559651]
[1733177369784,0.168,95367.0,95366.0,0.00559651]
[1733177369989,0.168,95367.0,95366.0,0.0008646]
[1733177370202,0.18895258,95367.0,95366.0,0.0008646]
[1733177373269,0.18895262,95367.0,95366.0,0.0008646]
[1733177376816,0.38895262,95367.0,95366.0,0.0008646]
[1733177377308,0.28569594,95367.0,95366.0,0.0008646]
[1733177377515,0.63569582,95367.0,95366.0,0.0008646]
[1733177377936,0.64094249,95367.0,95366.0,0.0008646]
[1733177381194,0.63194249,95367.0,95366.0,0.0008646]
[1733177381627,0.63294249,95367.0,95366.0,0.0008646]
[1733177381812,0.62394249,95367.0,95366.0,0.0008646]
[1733177382016,0.62494249,95367.0,95366.0,0.0008646]
[1733177383391,0.62494277,95367.0,95366.0,0.0008646]
[1733177384521,0.57819945,95367.0,95366.0,0.0008646]
[1733177385355,0.56052593,95367.0,95366.0,0.0008646]
[1733177385995,0.01052605,95367.0,95366.0,0.10370981]
[1733177386401,0.00527925,95367.0,95366.0,0.1084795]
[1733177386604,0.00527925,95367.0,95366.0,0.11633784]
[1733177386811,0.00427925,95367.0,95366.0,0.11633784]
[1733177387114,0.00427925,95367.0,95366.0,0.11633738]
[1733177387777,0.00327925,95367.0,95366.0,0.11633738]
[1733177388198,0.00427925,95367.0,95366.0,0.11833738]
[1733177388419,0.00527925,95367.0,95366.0,0.12633738]
[1733177389266,0.002,95367.0,95366.0,0.12633738]
[1733177389678,0.001,95367.0,95366.0,0.11833738]
[1733177389889,0.01,95367.0,95366.0,0.11933738]
[1733177391025,0.01227925,95367.0,95366.0,0.11733738]
[1733177391230,0.009,95367.0,95366.0,0.11733738]
[1733177391476,0.018,95367.0,95366.0,0.11833738]
[1733177394388,0.018,95367.0,95366.0,0.32805538]
[1733177395436,0.018,95367.0,95366.0,0.3201975]
[1733177395647,0.018,95367.0,95366.0,0.4004975]
[1733177396544,0.018,95367.0,95366.0,0.40835001]
[1733177396755,0.018,95367.0,95366.0,0.42577207]
[1733177399403,0.018,95367.0,95366.0,0.43832981]
[1733177399677,0.018,95367.0,95366.0,0.45901788]
[1733177400452,0.018,95367.0,95366.0,0.56801788]
[1733177400734,0.009,95367.0,95366.0,0.63651788]
[1733177401014,0.0017292,95381.0,95380.0,0.335787]
[1733177401289,0.0017292,95381.0,95380.0,0.45118995]
[1733177401556,0.0017292,95381.0,95380.0,0.20748904]
[1733177401797,0.0017292,95381.0,95380.0,0.19678669]
[1733177402561,0.0107292,95381.0,95380.0,0.19778669]
[1733177403331,0.0107292,95381.0,95380.0,0.26230864]
[1733177403606,0.0107292,95381.0,95380.0,0.26045325]
[1733177403830,0.0107292,95381.0,95380.0,0.27299801]
[1733177404318,0.0197292,95381.0,95380.0,0.27486261]
[1733177405736,0.0197292,95381.0,95380.0,0.29786261]
[1733177406600,0.0107292,95381.0,95380.0,0.31252423]
[1733177406808,0.0197292,95381.0,95380.0,0.31352423]
[1733177407439,0.0107292,95381.0,95380.0,0.31252423]
[1733177407852,0.0197292,95381.0,95380.0,0.31352423]
[1733177408058,0.0107292,95381.0,95380.0,0.31252423]
[1733177408264,0.0107292,95381.0,95380.0,0.29686261]
[1733177408472,0.0197292,95381.0,95380.0,0.29786261]
[1733177408679,0.0107292,95381.0,95380.0,0.29686261]
[1733177408896,0.0197292,95381.0,95380.0,0.29786261]
[1733177412311,0.0197292,95381.0,95380.0,0.29779755]
[1733177412934,0.0197292,95381.0,95380.0,0.27479755]
[1733177413799,0.0197292,95381.0,95380.0,0.25446534]
[1733177413999,0.0197292,95381.0,95380.0,0.24983176]
[1733177414410,0.0197292,95381.0,95380.0,0.27283176]
[1733177417299,0.0197292,95381.0,95380.0,0.29317791]
[1733177423070,0.0197292,95381.0,95380.0,0.27283176]
[1733177423272,0.0197292,95381.0,95380.0,0.29319596]
[1733177423915,0.0197292,95381.0,95380.0,0.29320161]
[1733177426557,0.0197292,95381.0,95380.0,0.29321828]
[1733177429890,0.0197292,95381.0,95380.0,0.30369014]
[1733177430313,0.0197292,95381.0,95380.0,0.29321828]
[1733177430945,0.0197292,95381.0,95380.0,0.30369014]
[1733177431157,0.0197292,95381.0,95380.0,0.29321828]
[1733177432002,0.0197292,95381.0,95380.0,0.31173767]
[1733177432268,0.0197292,95381.0,95380.0,0.30126378]
[1733177433968,0.0197292,95381.0,95380.0,0.3117452]
[1733177434470,0.0197292,95381.0,95380.0,0.30126378]
[1733177435082,0.0197292,95381.0,95380.0,0.3117459]
[1733177435892,0.0197292,95381.0,95380.0,0.30126378]
[1733177436079,0.0197292,95381.0,95380.0,0.31174626]
[1733177436283,0.0197292,95381.0,95380.0,0.30126378]
[1733177436430,0.0197292,95381.0,95380.0,0.30131772]
[1733177437623,0.0197292,95381.0,95380.0,0.31180062]
[1733177437796,0.0197292,95381.0,95380.0,0.31180047]
[1733177437948,0.0197292,95381.0,95380.0,0.30131772]
[1733177440713,0.0197292,95381.0,95380.0,0.31180134]
[1733177440914,0.0197292,95381.0,95380.0,0.30131772]
[1733177441330,0.0197292,95381.0,95380.0,0.31180134]
[1733177441494,0.0197292,95381.0,95380.0,0.30131772]
[1733177441744,0.0995292,95381.0,95380.0,0.15201772]
[1733177441944,0.0995292,95381.0,95380.0,0.13419577]
[1733177442795,0.0995292,95381.0,95380.0,0.15128375]
[1733177442998,0.0995292,95381.0,95380.0,0.14928375]
[1733177442999,0.0815292,95381.0,95380.0,0.14928375]
[1733177443199,0.0815292,95381.0,95380.0,0.159705]
[1733177443406,0.0895292,95381.0,95380.0,0.17228558]
[1733177443610,0.0815292,95381.0,95380.0,0.16732558]
[1733177443811,0.0905292,95381.0,95380.0,0.16732558]
[1733177444340,0.0995292,95381.0,95380.0,0.16832558]
[1733177444755,0.0905292,95381.0,95380.0,0.16732558]
[1733177446837,0.0995292,95381.0,95380.0,0.16832558]
[1733177449212,0.0197292,95381.0,95380.0,0.16832558]
[1733177449439,0.0197292,95381.0,95380.0,0.1701811]
[1733177451314,0.0813,95401.0,95400.0,0.209643]
[1733177451519,0.0813,95401.0,95400.0,0.3559305]
[1733177451719,0.0813,95401.0,95400.0,0.36397326]
[1733177452335,0.0813,95401.0,95400.0,0.34061079]
[1733177452549,0.0903,95401.0,95400.0,0.34061079]
[1733177452991,0.0903,95401.0,95400.0,0.36124289]
[1733177453205,0.0993,95401.0,95400.0,0.36224289]
[1733177454234,0.0993,95401.0,95400.0,0.38004252]
[1733177457505,0.018,95401.0,95400.0,0.38004252]
[1733177459954,0.018,95401.0,95400.0,0.40304252]
[1733177460160,0.018,95401.0,95400.0,0.15296236]
[1733177460405,0.149,95401.0,95400.0,0.13233026]
[1733177461680,0.1498646,95401.0,95400.0,0.13233026]
[1733177461888,0.1498646,95401.0,95400.0,0.02948505]
[1733177462099,0.1498646,95401.0,95400.0,0.00886242]
[1733177462531,0.15314238,95401.0,95400.0,0.001]
[1733177462741,0.15314238,95401.0,95400.0,0.00885646]
[1733177462962,0.1498646,95401.0,95400.0,0.00885646]
[1733177463178,0.1498646,95401.0,95400.0,0.11170167]
[1733177463404,0.15314231,95401.0,95400.0,0.11170167]
[1733177463610,0.1498646,95401.0,95400.0,0.11975149]
[1733177464260,0.1016646,95401.0,95400.0,0.11975149]
[1733177465139,0.0188646,95401.0,95400.0,0.11975149]
[1733177467807,0.0188646,95401.0,95400.0,0.12160655]
[1733177468299,0.0188646,95401.0,95400.0,0.25260655]
[1733177468508,0.0098646,95401.0,95400.0,0.26122638]
[1733177468721,0.0098646,95401.0,95400.0,0.25075149]
[1733177468935,0.0098646,95401.0,95400.0,0.24975149]
[1733177469152,0.0178646,95401.0,95400.0,0.25075149]
[1733177469362,0.0178646,95401.0,95400.0,0.2612133]
[1733177469574,1e-08,95401.0,95400.0,0.24975149]
[1733177469788,0.00900001,95401.0,95400.0,0.25175149]
[1733177470003,0.01700001,95401.0,95400.0,0.25175149]
[1733177470218,0.008,95401.0,95400.0,0.25075149]
[1733177470904,0.008,95401.0,95400.0,0.25037069]
[1733177471538,0.013,95401.0,95400.0,0.25037069]
[1733177471977,0.013,95401.0,95400.0,0.20237069]
[1733177472235,0.013,95401.0,95400.0,0.12122552]
[1733177472668,0.013,95401.0,95400.0,0.11374986]
[1733177473121,0.013,95401.0,95400.0,0.11547866]
[1733177473327,0.0138644,95401.0,95400.0,0.11547866]
[1733177475931,0.0017336,95421.0,95400.0,0.24107866]
[1733177476144,0.0017336,95421.0,95420.0,0.31244421]
[1733177476758,0.0017336,95421.0,95420.0,0.32043951]
[1733177477440,0.0097336,95421.0,95420.0,0.32061576]
[1733177478068,0.0107336,95421.0,95420.0,0.32061576]
[1733177478301,0.0097336,95421.0,95420.0,0.32061576]
[1733177478511,0.0017336,95421.0,95420.0,0.32061576]
[1733177478726,0.0037336,95421.0,95420.0,0.32261576]
[1733177478931,0.0037336,95421.0,95420.0,0.33974549]
[1733177479144,0.0037336,95421.0,95420.0,0.33874549]
[1733177479356,0.0017336,95421.0,95420.0,0.33774549]
[1733177479595,0.0017336,95421.0,95420.0,0.33874549]
[1733177480640,0.0017336,95421.0,95420.0,0.35993827]
[1733177482092,0.0017336,95421.0,95420.0,0.34280854]
[1733177482324,0.0017336,95421.0,95420.0,0.13320954]
[1733177482809,0.0017336,95421.0,95420.0,0.11201676]
[1733177483054,0.0017336,95421.0,95420.0,0.11984099]
[1733177484541,0.0097336,95421.0,95420.0,0.12084099]
[1733177484755,0.0097336,95421.0,95420.0,0.11984099]
[1733177484986,0.0177336,95421.0,95420.0,0.11984099]
[1733177485193,0.0257336,95421.0,95420.0,0.12084099]
[1733177486260,0.0177336,95421.0,95420.0,0.11984099]
[1733177486673,0.0267336,95421.0,95420.0,0.12084099]
[1733177488153,0.0267336,95421.0,95420.0,0.12269571]
[1733177496306,0.0267336,95421.0,95420.0,0.13835002]
[1733177496772,0.0267336,95421.0,95420.0,0.12269571]
[1733177497014,0.0267336,95421.0,95420.0,0.13835002]
[1733177499286,0.0267336,95421.0,95420.0,0.13840162]
[1733177501252,0.0267336,95421.0,95420.0,0.1365469]
[1733177502319,0.0267336,95421.0,95420.0,0.12086014]
[1733177502739,0.0267336,95421.0,95420.0,0.1365469]
[1733177505173,0.0267336,95421.0,95420.0,0.1384015]
[1733177510535,0.0267336,95421.0,95420.0,0.1365469]
[1733177512435,0.0267336,95421.0,95420.0,0.13840151]
[1733177517558,0.02541672,95421.0,95420.0,0.13840151]
[1733177521338,0.02541672,95421.0,95420.0,0.16140151]
[1733177521542,0.02541672,95421.0,95420.0,0.23810151]
[1733177521761,0.00213398,95421.0,95420.0,0.26898061]
[1733177521961,0.00213398,95421.0,95420.0,0.26798061]
[1733177522376,0.0017312,95434.0,95433.0,0.209571]
[1733177522502,0.0017312,95434.0,95433.0,0.33594635]
[1733177522739,0.0017312,95434.0,95433.0,0.34387662]
[1733177522984,0.0017312,95434.0,95433.0,0.3650677]
[1733177524057,0.0087312,95434.0,95433.0,0.3660677]
[1733177524509,0.0087312,95434.0,95433.0,0.1564967]
[1733177524940,0.0087312,95434.0,95433.0,0.15653459]
[1733177525153,0.0087312,95434.0,95433.0,0.13534351]
[1733177526903,0.0873312,95434.0,95433.0,0.13534351]
[1733177527127,0.1326312,95434.0,95433.0,0.13534351]
[1733177527570,0.1326312,95434.0,95433.0,0.11963149]
[1733177527794,0.1256312,95434.0,95433.0,0.11863149]
[1733177528013,0.1256312,95434.0,95433.0,0.13434351]
[1733177528245,0.1256312,95434.0,95433.0,0.13434439]
[1733177528467,0.1256312,95434.0,95433.0,0.11863178]
[1733177528909,0.1256312,95434.0,95433.0,0.11963178]
[1733177529181,0.1326312,95434.0,95433.0,0.13634439]
[1733177529632,0.1256312,95434.0,95433.0,0.13534439]
[1733177530067,0.1326312,95434.0,95433.0,0.13634439]
[1733177530918,0.1326312,95434.0,95433.0,0.12063178]
[1733177531339,0.1326312,95434.0,95433.0,0.10484521]
[1733177531557,0.1326312,95434.0,95433.0,0.11270002]
[1733177533414,0.1326312,95434.0,95433.0,0.13379781]
[1733177533872,0.1326312,95434.0,95433.0,0.14170479]
[1733177534557,0.1326312,95434.0,95433.0,0.15741442]
[1733177534758,0.1326312,95434.0,95433.0,0.15741279]
[1733177534975,0.1326312,95434.0,95433.0,0.14170425]
[1733177535195,0.1326312,95434.0,95433.0,0.13379727]
[1733177535672,0.1326312,95434.0,95433.0,0.11269948]
[1733177535936,0.1326312,95434.0,95433.0,0.12060646]
[1733177537271,0.1326312,95434.0,95433.0,0.136315]
[1733177538117,0.1326312,95434.0,95433.0,0.13631339]
[1733177540048,0.1326312,95434.0,95433.0,0.12840641]
[1733177540461,0.1326312,95434.0,95433.0,0.13631945]
[1733177540674,0.1326312,95434.0,95433.0,0.12061198]